[Event "Gibraltar Challengers A 2019"]
[Site "Caleta"]
[Date "2019.01.21"]
[Round "1"]
[White "Onabogun, Kolade"]
[Black "Vinal Gutierrez, Pedro"]
[Result "0-1"]
[ECO "C16"]
[WhiteElo "2189"]
[BlackElo "1997"]
[Annotator "NA"]
[PlyCount "62"]
[EventDate "2019.01.21"]
[EventType "swiss"]
[EventCountry "GGB"]
[SourceTitle "playchess.com"]
[Source "ChessBase"]
[SourceQuality "1"]
[TimeControl "6600+10"]

1. e4 {[%emt 0:16:45]} e6 {[%emt 0:00:04]} 2. d4 {[%emt 0:00:41]} d5 {[%emt 0:00:07]} 3. Nc3 {[%emt 0:00:17]} Bb4 {[%emt 0:00:11]} 4. e5 {[%emt 0:00:07]} Qd7 {[%emt 0:00:36]} 5. Bd2 {[%emt 0:01:55]} b6 {[%emt 0:02:23]} 6. a3 {[%emt 0:01:27] C16: French: 3 Nc3 Bb4 4 e5: Lines without ...c5} (6. h4 Ne7 7. h5 Ba6 8. Bxa6 Nxa6 9. Qe2 Nb8 10. O-O-O Bxc3 11. Bxc3 c5 12. Nf3 h6 13. dxc5 bxc5 {1-0 (45) Tutisani,N (2469)-Bernadskiy,V (2586) Yerevan 2018}) 6... Bxc3 {[%emt 0:03:01]} 7. Bxc3 {[%emt 0:00:09]} Nh6 $146 {[%emt 0:01:49]} ({Predecessor:} 7... Ne7 8. Qg4 O-O 9. Nf3 Ba6 10. Bb4 Bxf1 11. Bxe7 Qxe7 12. Rxf1 c5 13. O-O-O Nc6 14. Rfe1 Rac8 15. Kb1 Nxd4 16. Nxd4 cxd4 17. Rxd4 b5 18. Qh4 Qxh4 {½-½ (18) Kristinsson,B (2180)-Arnason,A (2103) Reykjavik 2017}) 8. h4 {[%emt 0:02:28]} Bb7 {[%emt 0:00:54]} 9. Bd3 {[%emt 0:03:45]} Nc6 {[%emt 0:00:35]} 10. h5 {[%emt 0:01:46]} O-O-O {[%emt 0:00:47]} 11. Qd2 {[%emt 0:01:42]} Nxe5 {[%emt 0:03:03]} 12. dxe5 {[%emt 0:01:01]} d4 {[%emt 0:00:10]} 13. Bb4 {[%emt 0:00:52]} c5 {[%emt 0:00:31]} 14. Nf3 {[%emt 0:00:22]} Nf5 {[%emt 0:02:06]} 15. Qf4 {[%emt 0:07:01]} cxb4 {[%emt 0:01:42]} 16. axb4 {[%emt 0:00:15]} Kb8 {[%emt 0:00:56]} 17. b5 {[%emt 0:19:58]} g6 {[%emt 0:06:11]} 18. Ke2 {[%emt 0:03:34]} Rc8 {[%emt 0:18:17]} 19. Ra4 {[%emt 0:02:55]} Rhd8 {[%emt 0:04:22]} 20. Rha1 {[%emt 0:08:53]} Rc7 {[%emt 0:02:42]} 21. g4 {[%emt 0:03:43]} Bxf3+ {[%emt 0:05:09]} 22. Qxf3 {[%emt 0:03:53]} Ng7 {[%emt 0:02:40]} (22... Ne7 $16) 23. Ra6 {[%emt 0:11:31]} Qd5 {[%emt 0:05:31]} 24. h6 {[%emt 0:04:55]} Ne8 {[%emt 0:01:44]} 25. Qf4 {[%emt 0:00:24]} Rxc2+ {[%emt 0:04:59]} 26. Bxc2 {[%emt 0:10:32]} d3+ {[%emt 0:00:14]} 27. Ke1 {[%emt 0:02:31]} dxc2 $19 {[%emt 0:02:44]} 28. Qc1 {[%emt 0:00:04]} Qh1+ {[%emt 0:06:48]} 29. Ke2 {[%emt 0:00:03]} Rd1 {[%emt 0:01:02]} 30. Qxd1 {[%emt 0:01:11]} cxd1=Q+ {[%emt 0:00:56]} 31. Rxd1 {[%emt 0:00:11]} Qe4+ {[%emt 0:00:33]} 0-1

[Event "Gibraltar Challengers A 2019"]
[Site "Caleta"]
[Date "2019.01.21"]
[Round "1"]
[White "Lacrosse, Marc"]
[Black "Burke, Mitchell R"]
[Result "1/2-1/2"]
[ECO "E91"]
[WhiteElo "2182"]
[BlackElo "1994"]
[Annotator "NA"]
[PlyCount "58"]
[EventDate "2019.01.21"]
[EventType "swiss"]
[EventCountry "GGB"]
[SourceTitle "playchess.com"]
[Source "ChessBase"]
[SourceQuality "1"]
[TimeControl "6600+10"]

1. d4 {[%emt 0:01:14]} Nf6 {[%emt 0:00:16]} 2. c4 {[%emt 0:00:23]} g6 {[%emt 0:00:22]} 3. Nc3 {[%emt 0:00:21]} Bg7 {[%emt 0:00:14]} 4. e4 {[%emt 0:00:05]} d6 {[%emt 0:00:06]} 5. Be2 {[%emt 0:00:10]} O-O {[%emt 0:00:48]} 6. Be3 {[%emt 0:00:28]} Nbd7 {[%emt 0:03:55]} 7. Nf3 {[%emt 0:00:42]} c5 {[%emt 0:01:59]} 8. d5 {[%emt 0:04:44]} b5 {[%emt 0:05:20]} 9. cxb5 {[%emt 0:00:59]} a6 {[%emt 0:21:33]} 10. a4 {[%emt 0:04:12]} Qa5 {[%emt 0:06:04]} 11. O-O {[%emt 0:04:13]} Qb4 {[%emt 0:08:23]} 12. Qc2 {[%emt 0:02:09]} axb5 {[%emt 0:11:53]} 13. axb5 {[%emt 0:04:51]} Bb7 {[%emt 0:01:14]} 14. Nd2 {[%emt 0:11:42]} Nb6 {[%emt 0:11:11]} 15. Ra2 {[%emt 0:13:48]} Nfd7 {[%emt 0:07:25]} 16. Rfa1 {[%emt 0:03:34]} Rxa2 {[%emt 0:02:27]} 17. Rxa2 {[%emt 0:00:48]} Ra8 {[%emt 0:02:00]} 18. Rxa8+ $16 {[%emt 0:01:27]} Bxa8 {[%emt 0:00:08]} 19. h3 {[%emt 0:05:44]} e6 {[%emt 0:04:24]} 20. dxe6 {[%emt 0:09:44]} fxe6 {[%emt 0:00:08]} 21. Bg4 {[%emt 0:06:09]} Nf8 {[%emt 0:03:35]} 22. Bf4 {[%emt 0:11:18]} d5 {[%emt 0:05:19]} 23. Bd6 {[%emt 0:03:21]} d4 {[%emt 0:08:12]} 24. Na2 {[%emt 0:08:22]} Qxb5 {[%emt 0:00:32]} 25. Qxc5 {[%emt 0:01:06]} Qxc5 {[%emt 0:01:26]} 26. Bxc5 {[%emt 0:00:07]} Na4 {[%emt 0:01:05]} 27. Bxf8 {[%emt 0:03:22]} Kxf8 {[%emt 0:00:06]} 28. Bxe6 {[%emt 0:01:36]} Nxb2 {[%emt 0:00:14]} 29. Kf1 {[%emt 0:03:27]} Bh6 {[%emt 0:00:23]} 1/2-1/2

[Event "Gibraltar Challengers A 2019"]
[Site "Caleta"]
[Date "2019.01.21"]
[Round "1"]
[White "Crespo, Eugenio"]
[Black "Lutz, Klaus-Juergen"]
[Result "1-0"]
[ECO "D34"]
[WhiteElo "2169"]
[BlackElo "2200"]
[Annotator "NA"]
[PlyCount "81"]
[EventDate "2019.01.21"]
[EventType "swiss"]
[EventCountry "GGB"]
[SourceTitle "playchess.com"]
[Source "ChessBase"]
[SourceQuality "1"]
[TimeControl "6600+10"]

1. Nf3 {[%emt 0:00:25]} d5 {[%emt 0:00:34]} 2. g3 {[%emt 0:00:10]} Nf6 {[%emt 0:01:20]} 3. Bg2 {[%emt 0:00:13]} e6 {[%emt 0:02:23]} 4. O-O {[%emt 0:00:14]} Be7 {[%emt 0:00:10]} 5. c4 {[%emt 0:02:39]} O-O {[%emt 0:00:25]} 6. d4 {[%emt 0:07:08]} c5 {[%emt 0:05:23]} 7. cxd5 {[%emt 0:01:23]} exd5 {[%emt 0:00:20]} 8. Nc3 {[%emt 0:03:56]} Nc6 {[%emt 0:00:11] LiveBook: 5096 Games} 9. e3 {[%emt 0:10:28]} Bg4 {[%emt 0:10:53] D34: Tarrasch Defence: 6 g3 Nf6 7 Bg2 Be7} 10. Qa4 {[%emt 0:11:43]} (10. dxc5 Bxc5 11. h3 Bf5 12. a3 a5 13. Nd4 Bxd4 14. exd4 Qb6 15. g4 Be4 16. g5 Bxg2 17. Kxg2 Ne4 18. Nxd5 Qd8 {0-1 (35) Aseev,V (2116)-Musalov,R (2399) St Petersburg 2011}) 10... Bd7 {[%emt 0:46:26]} 11. dxc5 {[%emt 0:02:52]} Bxc5 {[%emt 0:00:34]} 12. Qh4 $146 {[%emt 0:19:04]} ({Predecessor:} 12. Qb3 $11 Na5 13. Qc2 Rc8 14. Rd1 Bb4 15. Bd2 Ne4 16. Be1 Bxc3 17. Bxc3 Nxc3 18. bxc3 {0-1 (82) Villegas Loaiza,M-Matews,M Merida 1997}) 12... Be7 {[%emt 0:07:07]} 13. Qf4 {[%emt 0:00:47]} Be6 {[%emt 0:05:33]} 14. Nd4 {[%emt 0:06:52]} Bd6 {[%emt 0:01:42]} 15. Nxe6 {[%emt 0:00:43]} fxe6 {[%emt 0:00:10]} 16. Qa4 {[%emt 0:00:56]} Qe7 {[%emt 0:04:22]} 17. Bd2 {[%emt 0:02:45]} Rae8 {[%emt 0:00:06]} 18. Rfd1 {[%emt 0:06:43]} Qf7 {[%emt 0:00:18]} 19. Be1 {[%emt 0:00:49]} Qh5 {[%emt 0:00:29]} 20. h3 {[%emt 0:09:32]} Bb8 {[%emt 0:01:07]} 21. Qc2 {[%emt 0:01:18]} Ne5 {[%emt 0:00:27]} 22. Qe2 {[%emt 0:00:34]} Qf7 {[%emt 0:01:01]} 23. Rac1 {[%emt 0:01:42]} h5 {[%emt 0:01:14]} 24. Nb5 {[%emt 0:04:48]} Kh8 {[%emt 0:04:17]} (24... h4 $11) 25. Bb4 {[%emt 0:00:54]} Rg8 {[%emt 0:01:56]} 26. Nd6 {[%emt 0:01:38]} Bxd6 {[%emt 0:00:01]} 27. Bxd6 {[%emt 0:00:06]} Nc4 {[%emt 0:00:06]} 28. Bb4 {[%emt 0:00:36]} Rc8 {[%emt 0:03:54]} 29. Bc3 {[%emt 0:01:25]} Rgf8 {[%emt 0:00:16]} 30. b3 {[%emt 0:00:25]} Nd6 {[%emt 0:00:52]} 31. Bb4 {[%emt 0:00:44]} Qd7 {[%emt 0:00:07]} 32. Qb2 {[%emt 0:00:44]} Rxc1 {[%emt 0:00:08]} 33. Rxc1 {[%emt 0:00:10]} Rf7 {[%emt 0:02:12]} 34. Qe5 {[%emt 0:00:32]} Nde8 {[%emt 0:02:55]} 35. Bf3 {[%emt 0:00:29]} g6 {[%emt 0:00:52]} 36. Bc3 {[%emt 0:01:46]} Kh7 {[%emt 0:00:01]} 37. g4 {[%emt 0:00:30]} Ng7 $18 {[%emt 0:00:04]} 38. Kg2 {[%emt 0:00:30]} h4 {[%emt 0:00:16]} 39. Qg5 {[%emt 0:00:15]} Ne4 {[%emt 0:00:47]} 40. Qxh4+ {[%emt 0:00:23]} Kg8 {[%emt 0:00:01]} 41. Be5 {[%emt 0:00:17]} 1-0

[Event "Gibraltar Challengers A 2019"]
[Site "Caleta"]
[Date "2019.01.21"]
[Round "1"]
[White "Gonzalez Gonzalez, Alfonso"]
[Black "Sikkel, Dirk"]
[Result "1-0"]
[ECO "B06"]
[WhiteElo "2160"]
[BlackElo "1943"]
[Annotator "NA"]
[PlyCount "81"]
[EventDate "2019.01.21"]
[EventType "swiss"]
[EventCountry "GGB"]
[SourceTitle "playchess.com"]
[Source "ChessBase"]
[SourceQuality "1"]
[TimeControl "6600+10"]

1. d4 {[%emt 0:01:09]} g6 {[%emt 0:00:48]} 2. e4 {[%emt 0:00:07]} Bg7 {[%emt 0:00:20]} 3. Nc3 {[%emt 0:00:15]} d6 {[%emt 0:01:07]} 4. Be3 {[%emt 0:00:29]} a6 {[%emt 0:02:38]} 5. Qd2 {[%emt 0:00:44]} b5 {[%emt 0:00:48]} 6. a4 {[%emt 0:01:40]} b4 {[%emt 0:00:00]} 7. Nd5 {[%emt 0:03:52] B06: Modern Defence} (7. Nd1 Bb7 8. f3 a5 9. c3 bxc3 10. bxc3 Nd7 11. Bd3 Nb6 12. Ne2 Bc6 13. Nb2 Nf6 14. Bh6 O-O {1-0 (35) Moiseenko,A (2692)-Petrosian,T (2625) Berlin 2015}) 7... a5 {[%emt 0:07:23]} 8. c3 {[%emt 0:03:31]} c6 {[%emt 0:00:34]} 9. Nf4 {[%emt 0:06:46]} bxc3 {[%emt 0:00:21]} 10. bxc3 {[%emt 0:04:05]} Nf6 {[%emt 0:00:20]} 11. f3 {[%emt 0:04:56]} O-O {[%emt 0:12:58]} 12. Nge2 $146 {[%emt 0:03:31]} ({Predecessor:} 12. Bc4 Nbd7 13. Bxf7+ Rxf7 14. Ne6 Qb6 {0-1 (38) Wieth,K (1870)-Pirola,C (2110) Matinhos 2015}) 12... Qc7 {[%emt 0:05:48]} 13. Ng3 {[%emt 0:04:54]} e5 {[%emt 0:00:40]} 14. dxe5 {[%emt 0:00:00]} dxe5 {[%emt 0:01:54]} 15. Nd3 {[%emt 0:03:33]} Rd8 {[%emt 0:01:42]} 16. Qf2 {[%emt 0:01:56]} Nbd7 {[%emt 0:04:16]} 17. Be2 {[%emt 0:11:59]} Ba6 {[%emt 0:00:26]} 18. O-O {[%emt 0:05:15]} Bc4 {[%emt 0:00:31]} 19. Nb2 {[%emt 0:02:44]} Bxe2 {[%emt 0:16:07]} 20. Nxe2 {[%emt 0:05:54]} Rdb8 {[%emt 0:02:20]} 21. Nc4 {[%emt 0:00:00]} Rb3 {[%emt 0:02:30]} 22. Rfd1 {[%emt 0:06:53]} Ne8 {[%emt 0:03:27]} 23. Rd3 {[%emt 0:04:56]} Rab8 {[%emt 0:00:17]} 24. Rad1 {[%emt 0:02:02]} Rb1 {[%emt 0:02:08]} 25. Nc1 {[%emt 0:02:10]} Nf8 {[%emt 0:02:01]} 26. Qa2 {[%emt 0:07:55]} c5 {[%emt 0:02:10]} 27. R3d2 {[%emt 0:01:55]} R1b7 {[%emt 0:02:06]} 28. Na3 {[%emt 0:00:07]} Ne6 {[%emt 0:01:37]} 29. Nb5 {[%emt 0:00:27]} Qc8 {[%emt 0:01:58]} 30. Qc4 $14 {[%emt 0:00:00]} Bf8 {[%emt 0:04:17]} 31. Nb3 {[%emt 0:02:37]} Ra8 {[%emt 0:08:13]} 32. Rd5 {[%emt 0:00:23]} N8c7 {[%emt 0:12:34]} 33. Rxe5 {[%emt 0:02:04]} Nxb5 {[%emt 0:02:03]} 34. axb5 {[%emt 0:01:55]} Qb8 {[%emt 0:01:51]} 35. Rxe6 {[%emt 0:00:00]} fxe6 {[%emt 0:00:45]} 36. Qxe6+ {[%emt 0:00:00]} Rf7 {[%emt 0:00:55]} 37. b6 {[%emt 0:06:32]} Qe8 {[%emt 0:03:33]} 38. Qxe8 {[%emt 0:00:00]} Rxe8 {[%emt 0:00:08]} 39. Nxa5 {[%emt 0:01:01]} Rf6 {[%emt 0:01:02]} 40. Nc4 {[%emt 0:01:42]} Rb8 {[%emt 0:01:01]} 41. Rd5 {[%emt 0:01:15]} 1-0

[Event "Gibraltar Challengers A 2019"]
[Site "Caleta"]
[Date "2019.01.21"]
[Round "1"]
[White "Janiszewski, Maciej"]
[Black "Nandi, Robin J"]
[Result "1/2-1/2"]
[ECO "E05"]
[WhiteElo "2146"]
[BlackElo "1903"]
[Annotator "NA"]
[PlyCount "86"]
[EventDate "2019.01.21"]
[EventType "swiss"]
[EventCountry "GGB"]
[SourceTitle "playchess.com"]
[Source "ChessBase"]
[SourceQuality "1"]
[TimeControl "6600+10"]

1. Nf3 {[%emt 0:00:00]} d5 {[%emt 0:00:04]} 2. d4 {[%emt 0:00:00]} Nf6 {[%emt 0:00:08]} 3. c4 {[%emt 0:00:07]} e6 {[%emt 0:00:17]} 4. g3 {[%emt 0:00:19]} Be7 {[%emt 0:00:33]} 5. Bg2 {[%emt 0:00:17]} O-O {[%emt 0:00:19]} 6. O-O {[%emt 0:00:04]} dxc4 {[%emt 0:00:13]} 7. Ne5 {[%emt 0:00:11]} c5 {[%emt 0:03:36]} 8. dxc5 {[%emt 0:01:54]} Qc7 {[%emt 0:03:09]} 9. Nxc4 {[%emt 0:01:01]} Qxc5 {[%emt 0:01:39]} 10. b3 {[%emt 0:00:58]} Nc6 {[%emt 0:05:47] E05: Open Catalan: 5 Nf3 Be7} (10... Rd8 11. Nbd2 Nc6 12. Bb2 Qb5 13. e3 Bd7 14. a4 Qa6 15. g4 Be8 16. g5 Nd7 17. Qg4 Nde5 18. Nxe5 Nxe5 19. Bxe5 Rxd2 {½-½ (31) Matlakov,M (2701)-Blomqvist,E (2574) Caleta 2017}) 11. Ba3 {[%emt 0:03:32]} Nb4 {[%emt 0:04:38]} 12. Bxb4 $146 {[%emt 0:07:05]} ({Predecessor:} 12. Nc3 Rd8 13. Qc1 e5 14. Qb2 Be6 15. Na4 Qb5 16. Qxe5 Nfd5 17. Rad1 Bf6 18. Qh5 {½-½ (66) Baklanov,V (2461)-Salmi,I (2434) ICCF email 2008}) 12... Qxb4 {[%emt 0:00:20]} 13. a3 {[%emt 0:01:43]} Qc5 {[%emt 0:03:18]} 14. Nbd2 {[%emt 0:00:58]} Rb8 {[%emt 0:07:26]} 15. Rc1 {[%emt 0:01:42]} b6 {[%emt 0:05:53]} 16. b4 {[%emt 0:02:43]} Qb5 {[%emt 0:03:18]} 17. Nf3 {[%emt 0:04:34]} Bb7 {[%emt 0:04:14]} 18. Nd4 {[%emt 0:10:02]} Qe8 {[%emt 0:12:41]} 19. Ne5 {[%emt 0:09:19]} Bxg2 {[%emt 0:02:51]} 20. Kxg2 {[%emt 0:00:07]} Rd8 {[%emt 0:08:20]} 21. Nec6 {[%emt 0:09:06]} Rd5 {[%emt 0:02:41]} 22. Qb3 {[%emt 0:02:51]} Qd7 {[%emt 0:03:29]} 23. Rfd1 {[%emt 0:04:32]} g6 {[%emt 0:05:30] [#]} 24. f3 $1 {[%emt 0:01:12]} Ne8 {[%emt 0:06:21]} 25. e4 {[%emt 0:07:50]} Rd6 {[%emt 0:00:21]} 26. e5 {[%emt 0:01:49]} Rd5 {[%emt 0:00:45]} 27. Nxe7+ {[%emt 0:00:51]} Qxe7 {[%emt 0:00:04]} 28. Nc6 {[%emt 0:00:13]} Qg5 {[%emt 0:04:40]} 29. f4 $18 {[%emt 0:00:45]} ({Weaker is} 29. Nxa7 Rxd1 30. Qxd1 (30. Rxd1 Qxe5 31. Nc6 Qe2+ 32. Kg1 Nf6 $11) 30... Qxe5 $14) 29... Rxd1 {[%emt 0:00:33]} 30. Qxd1 {[%emt 0:02:38]} Qh5 {[%emt 0:04:04]} 31. Qxh5 {[%emt 0:09:38]} gxh5 {[%emt 0:00:02]} 32. Ne7+ {[%emt 0:01:34]} Kg7 {[%emt 0:00:59]} 33. Rc8 {[%emt 0:01:44]} f6 {[%emt 0:03:01]} 34. Nc6 {[%emt 0:01:06]} fxe5 {[%emt 0:01:00]} 35. fxe5 {[%emt 0:01:50]} Kf7 {[%emt 0:02:56]} 36. Nxa7 {[%emt 0:04:01]} Rg8 {[%emt 0:01:09]} 37. Rb8 {[%emt 0:03:30]} Rg5 {[%emt 0:02:14]} 38. Nc6 {[%emt 0:00:39]} h4 {[%emt 0:00:27]} 39. Rxb6 {[%emt 0:02:56]} Ng7 {[%emt 0:00:51]} 40. Rb7+ {[%emt 0:00:31]} Kg6 {[%emt 0:00:15]} 41. Ne7+ {[%emt 0:00:17]} Kh5 {[%emt 0:00:46]} 42. Ng8 {[%emt 0:01:22]} hxg3 {[%emt 0:00:48]} 43. hxg3 {[%emt 0:00:50]} Nf5 {[%emt 0:01:35]} 1/2-1/2

[Event "Gibraltar Challengers A 2019"]
[Site "Caleta"]
[Date "2019.01.21"]
[Round "1"]
[White "Kandic, Milan"]
[Black "Fischer, Gerd"]
[Result "1/2-1/2"]
[ECO "C41"]
[WhiteElo "2136"]
[BlackElo "2083"]
[Annotator "NA"]
[PlyCount "56"]
[EventDate "2019.01.21"]
[EventType "swiss"]
[EventCountry "GGB"]
[SourceTitle "playchess.com"]
[Source "ChessBase"]
[SourceQuality "1"]
[TimeControl "6600+10"]

1. e4 {[%emt 0:04:03]} d6 {[%emt 0:00:01]} 2. d4 {[%emt 0:00:04]} Nf6 {[%emt 0:00:11]} 3. Nc3 {[%emt 0:00:05]} e5 {[%emt 0:00:13]} 4. Nf3 {[%emt 0:00:04]} exd4 {[%emt 0:00:21]} 5. Qxd4 {[%emt 0:00:17]} Be7 {[%emt 0:01:25]} 6. Bb5+ {[%emt 0:04:20] C41: Philidor Defence} (6. Bg5 h6 7. Bf4 O-O 8. Be2 a6 9. O-O Nc6 10. Qd3 Re8 11. Rad1 Nd7 12. Nd5 Bf6 13. b4 a5 14. a3 axb4 15. axb4 {½-½ (25) Dubov,D (2627)-Rapport,R (2709) Moscow 2015}) 6... Nc6 {[%emt 0:07:23]} 7. Bxc6+ {[%emt 0:03:34]} bxc6 {[%emt 0:00:10]} 8. h3 {[%emt 0:02:00]} O-O {[%emt 0:03:26]} 9. O-O {[%emt 0:08:00]} Re8 {[%emt 0:04:52]} 10. Bg5 $146 {[%emt 0:05:01]} ({Predecessor:} 10. Bf4 Bb7 11. Rfe1 c5 12. Qd3 Bf8 13. Rad1 {1-0 (41) Roseneck,J (1764)-Sykora,M (1550) Maribor 2012}) 10... h6 {[%emt 0:02:12]} 11. Bh4 {[%emt 0:02:10]} Nd7 {[%emt 0:13:27]} 12. Bxe7 {[%emt 0:01:40]} Qxe7 {[%emt 0:00:12]} 13. Rfe1 {[%emt 0:00:28]} c5 {[%emt 0:05:06]} 14. Qd2 {[%emt 0:02:32]} Bb7 {[%emt 0:03:17]} 15. Nd5 {[%emt 0:01:24]} Bxd5 {[%emt 0:02:29]} 16. exd5 {[%emt 0:14:43]} Qf6 {[%emt 0:00:25]} 17. c4 {[%emt 0:00:39]} a5 {[%emt 0:17:14]} 18. Re2 {[%emt 0:08:43]} Rab8 {[%emt 0:07:33]} 19. Rae1 {[%emt 0:01:20]} Rxe2 $11 {[%emt 0:02:03]} 20. Rxe2 {[%emt 0:00:50]} a4 {[%emt 0:08:23]} 21. Qc2 {[%emt 0:01:26]} Nb6 {[%emt 0:00:56]} 22. Nh2 {[%emt 0:09:34]} h5 {[%emt 0:13:40]} 23. Nf1 {[%emt 0:02:06]} g6 {[%emt 0:03:13]} 24. Ng3 {[%emt 0:05:15]} Kg7 {[%emt 0:04:31]} 25. Re4 {[%emt 0:21:33]} Nxd5 {[%emt 0:02:43]} 26. Re2 {[%emt 0:05:16]} Nf4 {[%emt 0:01:15]} 27. Rd2 {[%emt 0:00:38]} Qe5 {[%emt 0:03:17]} 28. Ne2 {[%emt 0:02:27]} Re8 {[%emt 0:01:18]} 1/2-1/2

[Event "Gibraltar Challengers A 2019"]
[Site "Caleta"]
[Date "2019.01.21"]
[Round "1"]
[White "Jordan Martinez, David"]
[Black "Francois-Haugrin, Said"]
[Result "1-0"]
[ECO "B20"]
[WhiteElo "2125"]
[BlackElo "1825"]
[Annotator "NA"]
[PlyCount "51"]
[EventDate "2019.01.21"]
[EventType "swiss"]
[EventCountry "GGB"]
[SourceTitle "playchess.com"]
[Source "ChessBase"]
[SourceQuality "1"]
[TimeControl "6600+10"]

1. e4 {[%emt 0:00:00]} c5 {[%emt 0:03:36]} 2. g3 {[%emt 0:00:01]} Nc6 {[%emt 0:00:40]} 3. Bg2 {[%emt 0:00:13]} g6 {[%emt 0:00:54]} 4. Ne2 {[%emt 0:00:20]} Bg7 {[%emt 0:00:08]} 5. c3 {[%emt 0:00:11]} d6 {[%emt 0:02:38]} 6. d4 {[%emt 0:05:20]} cxd4 {[%emt 0:00:51]} 7. cxd4 {[%emt 0:00:03]} Bg4 {[%emt 0:02:50]} 8. f3 {[%emt 0:00:41] B20: Sicilian: Unusual White 2nd moves} Bd7 {[%emt 0:01:03]} 9. Nbc3 {[%emt 0:00:20]} Nf6 {[%emt 0:24:17] LiveBook: 22 Games} 10. Be3 {[%emt 0:00:17]} O-O {[%emt 0:00:08]} 11. Qd2 {[%emt 0:00:24]} (11. O-O e5 12. d5 {1-0 (32) Fedorov,A (2561)-Amonatov,F (2615) St Petersburg 2018}) 11... e5 {[%emt 0:30:40]} 12. O-O {[%emt 0:02:35]} Re8 $146 {[%emt 0:01:36]} ({Predecessor:} 12... exd4 13. Nxd4 Nxd4 14. Bxd4 Bc6 15. Rad1 Re8 {1-0 (41) Munoz Pantoja,M (2477)-Perpinya Rofes,L (2373) Barcelona 2016}) 13. Rfd1 {[%emt 0:04:41]} Qa5 {[%emt 0:03:17]} 14. a3 {[%emt 0:02:51]} a6 {[%emt 0:08:40]} 15. d5 {[%emt 0:00:50]} Ne7 {[%emt 0:00:40]} 16. b4 {[%emt 0:00:22]} Qd8 {[%emt 0:00:21]} 17. a4 {[%emt 0:03:54]} a5 {[%emt 0:06:26]} 18. Rdb1 {[%emt 0:00:36]} b6 {[%emt 0:15:27]} 19. bxa5 {[%emt 0:02:35]} bxa5 {[%emt 0:00:03]} 20. Bb6 $18 {[%emt 0:01:00]} Qc8 {[%emt 0:00:34]} 21. Nb5 {[%emt 0:01:22]} Bxb5 {[%emt 0:00:05]} 22. Rxb5 {[%emt 0:00:16]} Nd7 {[%emt 0:01:38]} 23. Bh3 {[%emt 0:06:38]} f5 {[%emt 0:00:46]} 24. Rc1 {[%emt 0:08:06]} Qa6 {[%emt 0:00:54]} 25. Be3 {[%emt 0:01:02]} h5 {[%emt 0:05:22]} 26. Rc7 {[%emt 0:00:40]} 1-0

[Event "Gibraltar Challengers A 2019"]
[Site "Caleta"]
[Date "2019.01.21"]
[Round "1"]
[White "Osuna Vega, Enrique"]
[Black "Hng, Mei-Xian Eunice"]
[Result "1-0"]
[ECO "A21"]
[WhiteElo "2116"]
[BlackElo "1718"]
[Annotator "NA"]
[PlyCount "61"]
[EventDate "2019.01.21"]
[EventType "swiss"]
[EventCountry "GGB"]
[SourceTitle "playchess.com"]
[Source "ChessBase"]
[SourceQuality "1"]
[TimeControl "6600+10"]

1. c4 {[%emt 0:00:00]} e5 {[%emt 0:00:00]} 2. Nc3 {[%emt 0:00:40]} Bc5 {[%emt 0:00:51]} 3. e3 {[%emt 0:03:36]} Nf6 {[%emt 0:03:24]} 4. Nf3 {[%emt 0:02:28]} Nc6 {[%emt 0:03:34]} 5. d4 {[%emt 0:00:36]} exd4 {[%emt 0:07:19]} 6. exd4 {[%emt 0:00:08]} Be7 {[%emt 0:00:47]} 7. d5 {[%emt 0:00:18]} Nb8 {[%emt 0:00:36]} 8. Bd3 {[%emt 0:00:15]} d6 {[%emt 0:03:01]} 9. h3 {[%emt 0:01:38]} Nbd7 {[%emt 0:02:31]} 10. Bf4 {[%emt 0:00:50]} O-O {[%emt 0:04:38]} 11. O-O {[%emt 0:00:03]} c6 {[%emt 0:06:57]} 12. Bc2 {[%emt 0:05:19]} cxd5 $16 {[%emt 0:07:22]} 13. Nxd5 {[%emt 0:00:17]} Nxd5 {[%emt 0:02:44]} 14. Qxd5 {[%emt 0:00:39]} Nf6 {[%emt 0:01:14]} 15. Qd4 {[%emt 0:15:30]} Qc7 {[%emt 0:05:20]} 16. Rac1 {[%emt 0:13:50]} b6 {[%emt 0:08:19]} 17. Rfe1 {[%emt 0:00:53]} Re8 {[%emt 0:04:17]} 18. Ba4 {[%emt 0:10:56]} Rd8 {[%emt 0:05:52]} 19. b4 {[%emt 0:01:10]} Qb7 {[%emt 0:11:38]} 20. Qe3 {[%emt 0:04:01]} Nh5 {[%emt 0:03:28]} 21. Bg5 {[%emt 0:07:45]} Be6 {[%emt 0:04:00]} 22. Nd4 {[%emt 0:04:14]} Bxg5 {[%emt 0:04:49]} 23. Qxg5 {[%emt 0:01:10]} Nf6 {[%emt 0:02:51]} 24. Bc6 {[%emt 0:00:21]} Qc8 {[%emt 0:01:05]} 25. Bxa8 {[%emt 0:00:38]} Qxa8 {[%emt 0:00:05]} 26. Nxe6 {[%emt 0:01:02]} fxe6 {[%emt 0:00:08]} 27. Rxe6 {[%emt 0:00:30]} Rf8 {[%emt 0:01:46]} 28. Rxd6 {[%emt 0:04:21]} Kh8 {[%emt 0:01:07]} 29. f3 {[%emt 0:01:28]} Qe8 {[%emt 0:01:58]} 30. Rcd1 {[%emt 0:01:42]} h6 {[%emt 0:01:02]} 31. Qd2 {[%emt 0:00:13]} 1-0